bitfinex-derivatives/quotes_BTCF0:USTF0_20251009
["timestamp","ask_amount","ask_price","bid_price","bid_amount"]
[1760032269256,0.46629,120820.0,120810.0,3.21878888]
[1760032270561,0.5439,120820.0,120810.0,3.21858888]
[1760032270757,0.5439,120820.0,120810.0,0.39386888]
[1760032271061,0.5439,120820.0,120810.0,3.21822888]
[1760032271458,0.5439,120820.0,120810.0,3.29140622]
[1760032271861,0.5439,120820.0,120810.0,3.21822888]
[1760032272763,0.5439,120820.0,120810.0,2.46026888]
[1760032273058,0.5439,120820.0,120810.0,3.21794888]
[1760032273264,0.5439,120820.0,120810.0,3.29112622]
[1760032273457,0.5439,120820.0,120810.0,2.53344622]
[1760032273660,0.5439,120820.0,120810.0,3.29108622]
[1760032273961,0.6266263,120820.0,120810.0,3.20823312]
[1760032274159,0.5439,120820.0,120810.0,3.20823312]
[1760032274359,0.6266263,120820.0,120810.0,3.20815312]
[1760032274660,0.6266263,120820.0,120810.0,0.38431312]
[1760032274857,0.6266263,120820.0,120810.0,3.23743955]
[1760032275267,0.6266263,120820.0,120810.0,2.47991955]
[1760032275459,0.6266263,120820.0,120810.0,3.23743955]
[1760032276166,0.6266263,120820.0,120810.0,3.13493578]
[1760032277066,0.5439,120820.0,120810.0,2.46014888]
[1760032277364,0.5439,120820.0,120810.0,3.21742888]
[1760032278155,0.4839,120820.0,120810.0,3.21742888]
[1760032278558,0.4839,120820.0,120810.0,3.32002529]
[1760032279066,0.5139,120820.0,120810.0,3.32002529]
[1760032280668,0.5139,120820.0,120810.0,2.56274529]
[1760032280870,0.5966263,120820.0,120810.0,3.23701219]
[1760032281766,0.5139,120820.0,120810.0,3.23701219]
[1760032281965,0.5139,120820.0,120810.0,3.21714888]
[1760032282774,0.5139,120820.0,120810.0,2.46014888]
[1760032282775,0.07549,120820.0,120810.0,2.46014888]
[1760032282970,0.43629,120820.0,120810.0,3.5256854]
[1760032283773,0.43629,120820.0,120810.0,2.46014888]
[1760032283973,0.5190163,120820.0,120810.0,3.13409578]
[1760032284668,0.5966263,120820.0,120810.0,0.31113578]
[1760032284871,0.44018965,120820.0,120810.0,2.37733578]
[1760032285069,1.17521965,120820.0,120810.0,3.13417578]
[1760032285271,1.17521965,120820.0,120810.0,3.28122227]
[1760032285875,1.48387617,120820.0,120810.0,1.21498227]
[1760032286171,0.29,120820.0,120810.0,2.00637189]
[1760032286371,0.04503,120840.0,120830.0,0.0827194]
[1760032286567,0.15503,120840.0,120830.0,1.44965592]
[1760032286771,0.15503,120840.0,120830.0,1.28804589]
[1760032286967,0.15503,120840.0,120830.0,0.51274568]
[1760032287171,0.23264,120840.0,120830.0,3.42042508]
[1760032287672,0.23264,120840.0,120830.0,3.42156086]
[1760032288270,0.23264,120840.0,120830.0,2.66280086]
[1760032288674,0.23264,120840.0,120830.0,3.42148086]
[1760032289364,0.23264,120840.0,120830.0,3.27443437]
[1760032289572,0.23264,120840.0,120830.0,2.51575437]
[1760032289974,0.23264,120840.0,120830.0,3.27427437]
[1760032290470,1.2461526,120840.0,120830.0,0.36683497]
[1760032290675,1.55480912,120840.0,120830.0,1.22797128]
[1760032291876,1.55480912,120840.0,120830.0,1.12543497]
[1760032292570,1.2461526,120840.0,120830.0,1.37494502]
[1760032293171,1.2461526,120840.0,120830.0,0.61646502]
[1760032293477,1.55480912,120840.0,120830.0,0.46941853]
[1760032293870,1.55480912,120840.0,120830.0,1.12527497]
[1760032294672,1.55480912,120840.0,120830.0,1.22795575]
[1760032294966,1.55480912,120840.0,120830.0,1.22783575]
[1760032295472,1.55480912,120840.0,120830.0,1.22779575]
[1760032296272,0.8461526,120840.0,120830.0,1.31051525]
[1760032296473,0.8461526,120840.0,120830.0,0.55223525]
[1760032296779,0.8461526,120840.0,120830.0,1.31039525]
[1760032297075,1.15480912,120840.0,120830.0,1.31039525]
[1760032297275,1.15480912,120840.0,120830.0,1.22799575]
[1760032297478,1.55480912,120840.0,120830.0,1.12531497]
[1760032298873,1.55480912,120840.0,120830.0,1.12511497]
[1760032299078,1.55480912,120840.0,120830.0,1.20783447]
[1760032299479,1.55480912,120840.0,120830.0,1.12511497]
[1760032300277,1.55480912,120840.0,120830.0,0.18310578]
[1760032300578,0.2023064,120810.0,120800.0,0.50118457]
[1760032300779,1.2139064,120810.0,120800.0,1.33790457]
[1760032301181,1.2139064,120810.0,120800.0,1.25516457]
[1760032301479,1.52256292,120810.0,120800.0,0.57139808]
[1760032301681,1.52256292,120810.0,120800.0,1.05824]
[1760032301882,1.52256292,120810.0,120800.0,1.05924]
[1760032302082,1.52256292,120810.0,120800.0,0.301]
[1760032302083,1.92256292,120810.0,120800.0,0.301]
[1760032302280,1.92256292,120810.0,120800.0,1.05932]
[1760032302483,1.92256292,120810.0,120800.0,0.40369421]
[1760032302785,1.52256292,120810.0,120800.0,0.30313578]
[1760032302982,1.52256292,120810.0,120800.0,1.06145578]
[1760032303182,1.0116,120810.0,120800.0,1.50081578]
[1760032303379,1.0116,120810.0,120800.0,0.90325578]
[1760032303380,0.29,120810.0,120800.0,0.90325578]
[1760032303584,0.29,120810.0,120800.0,2.3331923]
[1760032303881,0.5630896,120830.0,120820.0,0.1607463]
[1760032304188,0.8230896,120830.0,120820.0,1.35381212]
[1760032304775,0.8230896,120830.0,120820.0,1.3549479]
[1760032305290,0.8230896,120830.0,120820.0,1.3549079]
[1760032306987,0.8230896,120830.0,120820.0,1.42269686]
[1760032307182,0.8230896,120830.0,120820.0,1.33997056]
[1760032307388,1.13174612,120830.0,120820.0,1.33981056]
[1760032307686,0.8230896,120830.0,120820.0,1.23730474]
[1760032307888,1.13174612,120830.0,120820.0,1.15908474]
[1760032308286,1.53174612,120830.0,120820.0,0.39892474]
[1760032308486,1.53174612,120830.0,120820.0,0.33113578]
[1760032308690,1.53174612,120830.0,120820.0,1.09125578]
[1760032311288,0.26,120830.0,120820.0,1.1673686]
[1760032311584,0.26,120830.0,120820.0,1.5281686]
[1760032311886,0.69819,120830.0,120820.0,0.63526427]
[1760032312088,0.8247794,120830.0,120820.0,1.27296797]
[1760032312287,0.8247794,120830.0,120820.0,0.50768797]
[1760032312486,0.8247794,120830.0,120820.0,1.27300797]
[1760032313088,0.8247794,120830.0,120820.0,0.50768797]
[1760032313289,0.8247794,120830.0,120820.0,1.27292797]
[1760032313689,0.8247794,120830.0,120820.0,1.35565427]
[1760032313988,0.8247794,120830.0,120820.0,0.50768797]
[1760032314189,0.8247794,120830.0,120820.0,1.27292797]
[1760032314488,1.13343592,120830.0,120820.0,1.09637578]
[1760032314699,1.53343592,120830.0,120820.0,0.33113578]
[1760032314888,1.2247794,120830.0,120820.0,0.33113578]
[1760032315089,1.2247794,120830.0,120820.0,1.09629578]
[1760032315284,1.53343592,120830.0,120820.0,0.33113578]
[1760032315494,1.53343592,120830.0,120820.0,1.0952]
[1760032315691,1.53343592,120830.0,120820.0,1.09747137]
[1760032315895,1.53343592,120830.0,120820.0,0.33227137]
[1760032316094,1.53343592,120830.0,120820.0,1.09731137]
[1760032316793,1.53343592,120830.0,120820.0,0.33227137]
[1760032317095,0.1601368,120790.0,120780.0,2.1938795]
[1760032317293,0.1601368,120790.0,120780.0,3.2319595]
[1760032317294,0.7809368,120790.0,120780.0,3.2319595]
[1760032317693,0.69819,120790.0,120780.0,3.2319595]
[1760032317894,0.69819,120790.0,120780.0,3.33447169]
[1760032318091,0.8915894,120830.0,120780.0,3.33447169]
[1760032318092,0.41318864,120850.0,120820.0,0.11889]
[1760032318392,0.12126,120840.0,120830.0,0.07404]
[1760032318586,0.12126,120840.0,120830.0,1.17583998]
[1760032318587,0.8847726,120840.0,120830.0,1.17583998]
[1760032320396,0.80206,120840.0,120830.0,1.33219938]
[1760032320801,0.8847726,120840.0,120830.0,1.33219938]
[1760032321501,0.5239726,120840.0,120830.0,0.55235938]
[1760032321693,0.5239726,120840.0,120830.0,1.33175938]
[1760032322495,0.5239726,120840.0,120830.0,0.46963998]
[1760032322699,1.59342912,120840.0,120830.0,0.33]
[1760032323289,1.59342912,120840.0,120800.0,0.10251219]
[1760032323290,0.2065531,120810.0,120800.0,0.10251219]
[1760032323494,0.5065531,120810.0,120800.0,1.18187219]
[1760032323793,0.9065531,120810.0,120800.0,1.07936]
[1760032324302,0.9065531,120810.0,120800.0,1.08049578]
[1760032324594,1.58415781,120810.0,120800.0,0.30213578]
[1760032324800,1.58415781,120810.0,120800.0,1.08137578]
[1760032325001,0.9065531,120810.0,120800.0,1.08137578]
[1760032325191,1.57600962,120810.0,120800.0,0.30313578]
[1760032325902,1.57600962,120810.0,120800.0,0.20223188]
[1760032326100,0.2065737,120780.0,120770.0,0.46331219]
[1760032326399,0.5165737,120780.0,120770.0,1.24215219]
[1760032326602,0.31,120780.0,120770.0,0.5656905]
[1760032326790,0.3927537,120780.0,120770.0,1.3444905]
[1760032327397,0.3927537,120780.0,120770.0,1.3464905]
[1760032327800,0.3927537,120780.0,120770.0,1.3484905]
[1760032327998,0.3927537,120780.0,120770.0,0.5696905]
[1760032328203,0.3927537,120780.0,120770.0,1.41573881]
[1760032328402,0.4720837,120780.0,120770.0,0.63685881]
[1760032328604,0.4720837,120780.0,120770.0,1.41541881]
[1760032328993,0.5165737,120780.0,120770.0,1.28635831]
[1760032330100,0.90529437,120780.0,120770.0,1.21036831]
[1760032330502,1.66609437,120780.0,120770.0,0.004]
[1760032330699,1.66609437,120780.0,120770.0,0.78216]
[1760032330903,1.66609437,120780.0,120770.0,0.004]
[1760032333097,0.1272574,120760.0,120750.0,5.77768]
[1760032333300,1.17677807,120760.0,120750.0,5.0]
[1760032333914,1.93757807,120760.0,120750.0,5.0]
[1760032334404,2.71525807,120760.0,120750.0,5.001]
[1760032335105,2.71525807,120760.0,120750.0,4.87942]
[1760032335300,1.93757807,120760.0,120750.0,4.87942]
[1760032335703,2.71509807,120760.0,120750.0,4.87942]
[1760032336106,2.71501807,120760.0,120750.0,4.87942]
[1760032336608,1.93757807,120760.0,120750.0,4.87942]
[1760032336807,2.71473807,120760.0,120750.0,4.87942]
[1760032338111,2.71461807,120760.0,120750.0,4.87942]
[1760032339009,1.93757807,120760.0,120750.0,4.87942]
[1760032339203,2.31417807,120760.0,120750.0,4.87942]
[1760032339405,1.1488574,120760.0,120750.0,4.87942]
[1760032339608,0.7435674,120760.0,120750.0,5.70224]
[1760032339802,1.13228807,120760.0,120750.0,5.6561]
[1760032340006,2.31967874,120760.0,120750.0,4.8264257]
[1760032340208,3.09699874,120760.0,120750.0,4.7048457]
[1760032340408,3.09699874,120760.0,120750.0,4.6138846]
[1760032340605,2.31967874,120760.0,120750.0,3.05140977]
[1760032340806,1.9871374,120760.0,120750.0,2.45803447]
[1760032341112,2.33798673,120760.0,120750.0,2.42620927]
[1760032341310,2.33798673,120760.0,120750.0,2.34440757]
[1760032341609,2.7267074,120760.0,120750.0,2.27453927]
[1760032341811,2.7267074,120760.0,120750.0,2.14949837]
[1760032342106,2.7269474,120760.0,120750.0,1.86180697]
[1760032342308,2.33822673,120760.0,120750.0,1.73498557]
[1760032342508,1.56054673,120760.0,120750.0,1.71205557]
[1760032342703,1.56054673,120760.0,120750.0,1.63974207]
[1760032342905,1.56054673,120760.0,120750.0,1.68588207]
[1760032343208,0.7435674,120760.0,120750.0,1.68588207]
[1760032343413,0.7435674,120760.0,120750.0,2.08588207]
[1760032343613,0.7435674,120760.0,120750.0,2.86344207]
[1760032343808,0.7435674,120760.0,120750.0,2.08588207]
[1760032344111,1.13228807,120760.0,120750.0,2.86344207]
[1760032345411,1.13228807,120760.0,120750.0,1.68588207]
[1760032346110,1.13228807,120760.0,120750.0,2.46324207]
[1760032347205,1.13228807,120760.0,120750.0,2.46348207]
[1760032347408,0.3827674,120760.0,120750.0,2.16865627]
[1760032347607,0.3827674,120760.0,120750.0,2.86344207]
[1760032348012,0.3827674,120760.0,120750.0,3.22424207]
[1760032348310,0.77148807,120760.0,120750.0,2.08588207]
[1760032348710,1.13228807,120760.0,120750.0,2.86324207]
[1760032348908,1.13228807,120760.0,120750.0,2.08588207]
[1760032349105,1.13228807,120760.0,120750.0,2.86308207]
[1760032350211,1.13228807,120760.0,120750.0,2.08588207]
[1760032350406,0.7435674,120760.0,120750.0,2.86308207]
[1760032350612,1.13228807,120760.0,120750.0,2.86308207]
[1760032351209,1.13228807,120760.0,120750.0,2.08588207]
[1760032351412,1.13228807,120760.0,120750.0,2.86256207]
[1760032351709,1.13228807,120760.0,120750.0,1.68588207]
[1760032351916,1.13228807,120760.0,120750.0,2.46256207]
[1760032352116,1.13228807,120760.0,120750.0,2.46240207]
[1760032352614,1.13228807,120760.0,120750.0,1.68588207]
[1760032352814,1.13228807,120760.0,120750.0,2.46232207]
[1760032354206,1.13228807,120760.0,120750.0,1.68588207]
[1760032354412,1.13228807,120760.0,120750.0,2.46180207]
[1760032355317,1.13228807,120760.0,120750.0,2.46156207]
[1760032355713,1.13228807,120760.0,120750.0,1.68588207]
[1760032355913,1.13228807,120760.0,120750.0,2.46136207]
[1760032356515,0.77148807,120760.0,120750.0,2.46136207]
[1760032356814,0.3,120760.0,120750.0,2.91817694]
[1760032357011,0.3,120760.0,120750.0,3.69365694]
[1760032357413,0.3,120760.0,120750.0,3.69361694]
[1760032358114,0.3,120760.0,120750.0,3.30489627]
[1760032358320,0.3,120760.0,120750.0,3.30465627]
[1760032358921,0.3827674,120760.0,120750.0,2.52945627]
[1760032359112,0.3827674,120760.0,120750.0,2.16865627]
[1760032359317,0.77148807,120760.0,120750.0,2.54373627]
[1760032360415,1.13228807,120760.0,120750.0,1.76865627]
[1760032360622,0.77148807,120760.0,120750.0,2.54341627]
[1760032362020,1.13228807,120760.0,120750.0,2.54341627]
[1760032362618,0.77148807,120760.0,120750.0,2.54341627]
[1760032362923,1.13228807,120760.0,120750.0,2.54341627]
[1760032363124,0.77148807,120760.0,120750.0,2.54341627]
[1760032364019,0.77148807,120760.0,120750.0,1.76865627]
[1760032364220,0.77148807,120760.0,120750.0,2.54297627]
[1760032365922,1.13228807,120760.0,120750.0,1.68588207]
[1760032366127,1.13228807,120760.0,120750.0,2.45936207]
[1760032366332,1.13228807,120760.0,120750.0,2.54213627]
[1760032367021,1.13228807,120760.0,120750.0,2.54197627]
[1760032367622,1.13228807,120760.0,120750.0,1.76865627]
[1760032367828,0.77148807,120760.0,120750.0,2.54173627]
[1760032369929,0.77148807,120760.0,120750.0,1.68588207]
[1760032370127,0.77148807,120760.0,120750.0,2.45848207]
[1760032370327,0.77148807,120760.0,120750.0,2.54125627]
[1760032371830,0.77148807,120760.0,120750.0,2.45848207]
[1760032372131,0.77148807,120760.0,120750.0,2.54125627]
[1760032372633,0.3827674,120760.0,120750.0,2.90153627]
[1760032372929,0.3,120760.0,120750.0,2.91817694]
[1760032373133,0.3,120760.0,120750.0,3.69049694]
[1760032373529,0.3,120760.0,120750.0,3.30177627]
[1760032374230,0.77148807,120760.0,120750.0,2.12945627]
[1760032374435,0.77148807,120760.0,120750.0,2.54073627]
[1760032374734,1.13228807,120760.0,120750.0,1.76865627]
[1760032374929,1.13228807,120760.0,120750.0,2.54101627]
[1760032375132,1.13228807,120760.0,120750.0,1.68588207]
[1760032375332,1.13228807,120760.0,120750.0,2.54101627]
[1760032375532,1.13228807,120760.0,120750.0,1.76865627]
[1760032375734,0.77148807,120760.0,120750.0,2.54085627]
[1760032376435,0.77148807,120760.0,120750.0,2.54073627]
[1760032378637,0.3827674,120760.0,120750.0,2.90113627]
[1760032378934,0.3827674,120760.0,120750.0,2.54033627]
[1760032379532,0.3827674,120760.0,120750.0,2.90113627]
[1760032380233,0.3827674,120760.0,120750.0,2.12945627]
[1760032380432,0.3827674,120760.0,120750.0,2.90061627]
[1760032380635,0.3827674,120760.0,120750.0,2.53981627]
[1760032381034,0.77148807,120760.0,120750.0,2.53981627]
[1760032381240,0.3827674,120760.0,120750.0,2.53981627]
[1760032382530,0.3827674,120760.0,120750.0,2.53949627]
[1760032383035,0.77148807,120760.0,120750.0,2.53949627]
[1760032383833,0.77148807,120760.0,120750.0,1.76865627]
[1760032384043,0.77148807,120760.0,120750.0,2.53905627]
[1760032384233,0.77148807,120760.0,120750.0,2.64156846]
[1760032384635,0.77148807,120760.0,120750.0,1.87116846]
[1760032384840,0.77148807,120760.0,120750.0,2.64144846]
[1760032385438,0.3827674,120760.0,120750.0,2.90384846]
[1760032385638,0.3827674,120760.0,120750.0,3.26464846]
[1760032386936,0.3,120760.0,120750.0,3.66448846]
[1760032387140,0.3608,120790.0,120780.0,0.0827537]
[1760032387338,0.02,120790.0,120780.0,0.9883337]
[1760032387538,0.3608,120810.0,120800.0,0.21708]
[1760032387731,0.7635331,120810.0,120800.0,0.21708]
[1760032387941,0.7635331,120810.0,120800.0,0.98856]
[1760032388137,0.77168833,120810.0,120800.0,0.98856]
[1760032388340,1.08051828,120810.0,120800.0,0.88597782]
[1760032388542,1.08051828,120810.0,120800.0,0.11457782]
[1760032388842,1.08051828,120810.0,120800.0,0.88593782]
[1760032389043,1.08051828,120810.0,120800.0,0.11457782]
[1760032389234,1.08051828,120810.0,120800.0,0.88601782]
[1760032389434,1.08051828,120810.0,120800.0,0.11457782]
[1760032389646,1.08051828,120810.0,120800.0,0.88589782]
[1760032389840,1.48151828,120810.0,120800.0,0.04918]
[1760032390039,1.48251828,120810.0,120800.0,0.82042]
[1760032390236,1.48251828,120810.0,120800.0,0.82038]
[1760032390945,1.48251828,120810.0,120800.0,0.04918]
[1760032391138,1.48251828,120810.0,120800.0,0.82038]
[1760032392139,0.08274,120800.0,120790.0,0.04918]
[1760032392334,1.07236995,120800.0,120790.0,0.82018]
[1760032392546,0.0827537,120780.0,120770.0,0.04918]
[1760032392739,1.07238365,120780.0,120770.0,0.04918]
[1760032392935,0.0827605,120770.0,120760.0,0.04918]
[1760032393144,0.7235605,120770.0,120760.0,0.82038]
[1760032393645,1.0406768,120770.0,120760.0,0.82038]
[1760032394238,0.67159045,120770.0,120760.0,0.82038]
[1760032394448,1.03239045,120770.0,120760.0,0.90554]
[1760032394648,0.7235605,120770.0,120760.0,0.90554]
[1760032394945,0.7235605,120770.0,120760.0,0.82038]
[1760032395644,1.04068537,120770.0,120760.0,0.82038]
[1760032395846,1.04068537,120770.0,120760.0,0.04918]
[1760032396047,1.04068537,120770.0,120760.0,0.81994]
[1760032397938,1.03239045,120770.0,120760.0,0.13434]
[1760032398142,0.7235605,120770.0,120760.0,0.90478]
[1760032398452,0.3627605,120770.0,120760.0,0.90462]
[1760032398740,0.7235605,120770.0,120760.0,0.90462]
[1760032398936,0.7235605,120770.0,120760.0,0.04918]
[1760032399140,0.0827674,120760.0,120750.0,1.75492937]
[1760032399340,0.65159735,120760.0,120750.0,2.52500937]
[1760032399541,1.01239735,120760.0,120750.0,2.52500937]
[1760032399945,1.01239735,120760.0,120750.0,1.75492937]
[1760032400145,1.01239735,120760.0,120750.0,2.52492937]
[1760032400346,1.01239735,120760.0,120750.0,1.75492937]
[1760032400543,1.01239735,120760.0,120750.0,2.52484937]
[1760032402650,0.7035674,120760.0,120750.0,2.52484937]
[1760032404548,1.01239735,120760.0,120750.0,1.68792207]
[1760032404747,1.01239735,120760.0,120750.0,2.40778207]
[1760032405442,1.01339735,120760.0,120750.0,2.40770207]
[1760032405847,1.01339735,120760.0,120750.0,1.63874207]
[1760032406043,1.01339735,120760.0,120750.0,1.41567217]
[1760032406044,1.41339735,120760.0,120750.0,1.41567217]
[1760032406245,2.18315735,120760.0,120750.0,0.60871767]
[1760032406455,2.18379735,120760.0,120750.0,0.21722223]
[1760032406751,2.18379735,120760.0,120750.0,3e-08]
[1760032406952,2.18275735,120760.0,120750.0,3e-08]
[1760032407153,2.18375735,120760.0,120750.0,3e-08]
[1760032407747,1.41539735,120760.0,120750.0,3e-08]
[1760032407943,1.41639735,120760.0,120750.0,3e-08]
[1760032408146,2.18559735,120760.0,120750.0,3e-08]
[1760032409356,0.082788,120730.0,120720.0,0.7692]
[1760032409552,1.39321795,120730.0,120720.0,0.7692]
[1760032410262,1.40154605,120730.0,120720.0,0.7692]
[1760032410554,0.0827948,120720.0,120710.0,0.11424253]
[1760032410755,1.03242475,120720.0,120710.0,0.19586253]
[1760032410945,1.03242475,120720.0,120710.0,0.96458253]
[1760032411252,1.03242475,120720.0,120710.0,0.19586253]
[1760032411455,1.03242475,120720.0,120710.0,0.96454253]
[1760032411955,1.03242475,120720.0,120710.0,0.88292253]
[1760032412152,1.03242475,120720.0,120710.0,0.04918]
[1760032412358,0.0828017,120710.0,120700.0,0.81790511]
[1760032412557,1.02243165,120710.0,120700.0,0.81790511]
[1760032412760,1.02243165,120710.0,120700.0,0.04926511]
[1760032412959,1.02243165,120710.0,120700.0,0.81802511]
[1760032413160,1.02243165,120710.0,120700.0,0.04926511]
[1760032413360,1.02243165,120710.0,120700.0,0.81822511]
[1760032414063,1.02243165,120710.0,120700.0,0.89968511]
[1760032414264,0.7136017,120710.0,120700.0,1.38249361]
[1760032414764,0.7136017,120710.0,120700.0,1.38273361]
[1760032414765,0.3528017,120710.0,120700.0,1.38273361]
[1760032414960,0.27,120710.0,120700.0,0.97449361]
[1760032415363,0.27,120710.0,120700.0,1.74349361]
[1760032415869,0.27,120710.0,120700.0,1.80897821]
[1760032418865,0.27,120710.0,120700.0,1.04005821]
[1760032419173,0.27,120710.0,120700.0,1.80837821]
[1760032419370,0.27,120710.0,120700.0,1.04005821]
[1760032419574,0.27,120710.0,120700.0,1.80829821]
[1760032420465,0.4435815,120740.0,120730.0,0.135188]
[1760032420669,0.32,120740.0,120730.0,0.984928]
[1760032420870,0.32,120740.0,120730.0,1.384928]
[1760032420871,0.4027811,120740.0,120730.0,1.384928]
[1760032421873,0.4027811,120740.0,120730.0,0.616808]
[1760032422067,0.4027811,120740.0,120730.0,1.385048]
[1760032422466,0.4027811,120740.0,120730.0,0.985048]
[1760032423174,0.4027811,120740.0,120730.0,0.577608]
[1760032423472,0.4027811,120740.0,120730.0,1.345768]
[1760032423670,0.4027811,120740.0,120730.0,0.577608]
[1760032423876,0.71161105,120740.0,120730.0,0.216808]
[1760032424473,0.71161105,120740.0,120730.0,0.984608]
[1760032424667,0.71161105,120740.0,120730.0,0.216808]
[1760032424973,0.71161105,120740.0,120730.0,0.984568]
[1760032425568,0.71161105,120740.0,120730.0,0.216808]
[1760032425866,0.71161105,120740.0,120730.0,0.984528]
[1760032427373,0.71161105,120740.0,120730.0,0.216808]
[1760032427573,0.71161105,120740.0,120730.0,0.984368]
[1760032430075,0.32,120740.0,120730.0,0.983968]
[1760032430776,0.4027811,120740.0,120730.0,0.983968]
[1760032432982,0.32,120740.0,120730.0,1.344768]
[1760032433278,0.4027811,120740.0,120730.0,1.344768]
[1760032434080,0.71161105,120740.0,120730.0,1.344768]
[1760032434978,0.71161105,120740.0,120730.0,0.216808]
[1760032435282,0.71161105,120740.0,120730.0,0.982688]
[1760032435482,0.4027811,120740.0,120730.0,1.343488]
[1760032435676,0.32,120740.0,120730.0,1.343488]
[1760032435876,0.32,120740.0,120730.0,1.343328]
[1760032436479,0.4027811,120740.0,120730.0,1.343328]
[1760032436884,0.32,120740.0,120730.0,1.743208]
[1760032441181,0.32,120740.0,120730.0,0.53402]
[1760032441182,0.4027811,120740.0,120730.0,0.53402]
[1760032441484,0.71161105,120740.0,120730.0,0.89906]
[1760032441686,0.71161105,120740.0,120730.0,0.89942]
[1760032441986,1.07241105,120740.0,120730.0,0.89946]
[1760032442477,1.07241105,120740.0,120730.0,0.13402]
[1760032442677,1.07241105,120740.0,120730.0,0.8993]
[1760032442883,1.47241105,120740.0,120730.0,0.81768]
[1760032443186,1.47241105,120740.0,120730.0,0.1325]
[1760032443384,1.47241105,120740.0,120730.0,0.89778]
[1760032443583,1.47241105,120740.0,120730.0,0.81796]
[1760032444283,0.4027811,120740.0,120730.0,0.215288]
[1760032444590,0.32,120740.0,120730.0,0.215288]
[1760032444776,0.4027811,120740.0,120730.0,0.980688]
[1760032444980,0.32,120740.0,120730.0,1.341488]
[1760032445181,0.32,120740.0,120730.0,1.341608]
[1760032445380,0.32,120740.0,120730.0,2.004008]
[1760032445986,0.32,120740.0,120730.0,1.741608]
[1760032449185,0.32,120740.0,120730.0,0.976088]
[1760032449692,0.8324554,120770.0,120760.0,0.2138574]
[1760032449893,1.1024554,120770.0,120760.0,0.9788174]
[1760032451396,0.3537644,120770.0,120760.0,0.2138574]
[1760032451690,0.7426554,120770.0,120760.0,0.9788174]
[1760032452196,1.1044554,120770.0,120760.0,0.9785774]
[1760032452396,1.1044554,120770.0,120760.0,0.2138574]
[1760032452590,1.1044554,120770.0,120760.0,0.9784574]
[1760032452785,1.1034554,120770.0,120760.0,0.9784574]
[1760032453190,1.1034554,120770.0,120760.0,1.04515462]
[1760032453492,1.1034554,120770.0,120760.0,0.28055462]
[1760032453684,1.1024554,120770.0,120760.0,0.28055462]
[1760032453888,1.1034554,120770.0,120760.0,1.04495462]
[1760032454692,1.1044554,120770.0,120760.0,1.04491462]
[1760032455188,1.1044554,120770.0,120760.0,1.04475462]
[1760032455595,1.21337836,120770.0,120760.0,1.04475462]
[1760032457792,0.60367138,120770.0,120760.0,1.05283737]
[1760032457996,0.60367138,120770.0,120760.0,1.04447462]
[1760032458198,0.60367138,120770.0,120760.0,0.28055462]
[1760032458397,0.60367138,120770.0,120760.0,1.04423462]
[1760032458598,0.96447138,120770.0,120760.0,1.04423462]
[1760032459300,0.60367138,120770.0,120760.0,1.04423462]
[1760032461202,0.85257836,120770.0,120760.0,1.04403462]
[1760032461600,0.85257836,120770.0,120760.0,1.04371462]
[1760032462497,0.85257836,120770.0,120760.0,0.28055462]
[1760032462697,0.85257836,120770.0,120760.0,1.04355462]
[1760032462992,0.85257836,120770.0,120760.0,0.19778722]
[1760032463199,0.85257836,120770.0,120760.0,1.04347462]
[1760032463601,0.85257836,120770.0,120760.0,0.28055462]
[1760032463803,0.85257836,120770.0,120760.0,1.04339462]
[1760032464404,0.85257836,120770.0,120760.0,0.28055462]
[1760032464601,0.85257836,120770.0,120760.0,1.04339462]
[1760032464796,0.85057836,120770.0,120760.0,0.28055462]
[1760032464999,0.08200001,120770.0,120760.0,2.30180858]
[1760032465194,0.24890698,120780.0,120770.0,0.0827605]
[1760032465494,0.76781396,120780.0,120770.0,1.3397305]
[1760032465695,0.76781396,120780.0,120770.0,0.2138505]
[1760032466003,0.85056766,120780.0,120770.0,0.9790105]
[1760032466395,0.85156766,120780.0,120770.0,0.9790505]
[1760032466798,0.85156766,120780.0,120770.0,0.2138505]
[1760032466999,1.21236766,120780.0,120770.0,0.9790505]
[1760032467203,1.21336766,120780.0,120770.0,0.9790505]
[1760032467500,1.21336766,120780.0,120770.0,0.2138505]
[1760032467803,1.21336766,120780.0,120770.0,0.9790505]
[1760032468201,1.21336766,120780.0,120770.0,0.2138505]
[1760032468905,1.21336766,120780.0,120770.0,0.1337505]
[1760032469405,1.21336766,120780.0,120770.0,0.8985905]
[1760032469794,1.21336766,120780.0,120770.0,0.9786905]
[1760032470004,1.21336766,120780.0,120770.0,0.2138505]
[1760032470205,1.21336766,120780.0,120770.0,0.9786105]
[1760032470704,1.21336766,120780.0,120770.0,0.05099]
[1760032470898,1.46227464,120780.0,120770.0,0.05099]
[1760032471203,1.61336766,120780.0,120770.0,0.1337505]
[1760032471407,1.61336766,120780.0,120770.0,0.8982305]
[1760032472803,1.61336766,120780.0,120770.0,1.22658748]
[1760032472804,0.272,120780.0,120770.0,1.22658748]
[1760032473004,0.76981396,120780.0,120770.0,0.2168805]
[1760032473306,0.76981396,120780.0,120770.0,0.9812405]
[1760032474003,0.85256766,120780.0,120770.0,0.9812405]
[1760032474199,0.76981396,120780.0,120770.0,0.9812405]
[1760032474602,0.85256766,120780.0,120770.0,0.9812405]
[1760032475203,0.76981396,120780.0,120770.0,0.9823205]
[1760032475407,0.52090698,120780.0,120770.0,0.2168805]
[1760032475703,0.52090698,120780.0,120770.0,1.59182748]
[1760032476702,0.52090698,120780.0,120770.0,1.3429205]
[1760032476901,0.52090698,120780.0,120770.0,0.82658748]
[1760032477103,0.52090698,120780.0,120770.0,1.3428805]
[1760032478306,0.52090698,120780.0,120770.0,1.3426405]
[1760032478510,0.52090698,120780.0,120770.0,1.59154748]
[1760032479608,0.272,120780.0,120770.0,1.22658748]
[1760032480000,0.272,120780.0,120770.0,1.99122748]
[1760032480198,0.272,120780.0,120770.0,2.13841109]
[1760032481002,0.272,120780.0,120770.0,1.99122748]
[1760032481504,0.52090698,120780.0,120770.0,0.82658748]
[1760032481710,0.76981396,120780.0,120770.0,0.5776805]
[1760032481911,0.52090698,120780.0,120770.0,1.3422405]
[1760032482409,0.52090698,120780.0,120770.0,1.59114748]
[1760032482604,0.52090698,120780.0,120770.0,0.82658748]
[1760032482808,0.52090698,120780.0,120770.0,1.59130748]
[1760032483511,0.272,120780.0,120770.0,1.59130748]
[1760032483717,0.52090698,120780.0,120770.0,1.59122748]
[1760032484108,0.52090698,120780.0,120770.0,1.3423205]
[1760032484413,0.52090698,120780.0,120770.0,1.59122748]
[1760032484814,0.85256766,120780.0,120770.0,0.2168805]
[1760032485012,1.21336766,120780.0,120770.0,0.9813205]
[1760032485211,1.21336766,120780.0,120770.0,0.2168805]
[1760032485412,1.21336766,120780.0,120770.0,0.9813205]